[Event "GER-ch Youth-U18w 2023"]
[Site "Willingen"]
[Date "2023.06.02"]
[Round "8.7"]
[White "Peglau, Mirjam"]
[Black "Kalina, Lena"]
[Result "1-0"]
[Annotator "TA"]
[ECO "A03"]
[WhiteElo "1932"]
[BlackElo "1776"]
[PlyCount "151"]
[EventDate "2022.06.05"]
[EventType "swiss"]
[EventRounds "9"]
[EventCountry "GER"]
[SourceTitle "playchess.com"]
[Source "ChessBase"]
[SourceQuality "1"]
[TimeControl "40/4500+30:900+30"]

{[%evp 18,151,0,0,7,-12,7,0,0,-25,5,-18,-11,-31,-3,-14,25,20,52,53,29,34,51,17,40,-43,5,0,0,-82,-14,-34,27,0,19,16,18,5,7,0,0,0,65,-2,195,222,211,77,45,37,42,49,40,71,202,163,237,224,322,118,169,160,161,156,157,154,239,235,225,195,182,139,133,134,292,62,62,63,103,89,111,127,154,154,143,147,175,173,196,175,164,150,154,154,304,203,206,0,300,296,280,229,190,0,247,70,70,70,70,70,70,70,70,70,129,129,179,179,190,190,29973,190,29978,29979,29979,29980,29980,29981,29982,29983,29983,29984,29985,29986,29986,29987]} 1. f4 {[%emt 0:00:00]} d5 {[%emt 0:00:00]} 2. Nf3 {[%emt 0:00:00]} c5 {[%emt 0:00:00]} 3. g3 {[%emt 0:00:00]} Nc6 {[%emt 0:00:00]} 4. Bg2 {[%emt 0:00:00]} g6 {[%emt 0:00:00]} 5. d3 {[%emt 0:00:00]} Nf6 {[%emt 0:00:00]} 6. Nc3 {[%emt 0:00:00]} Bg7 {[%emt 0:02:19]} 7. O-O {[%emt 0:00:00]} O-O {[%emt 0:02:23]} 8. e4 {[%emt 0:00:00]} d4 {[%emt 0:05:31]} 9. Ne2 {[%emt 0:00:00]} e5 {[%emt 0:05:27]} 10. h3 {[%emt 0:00:00]} Ne8 {[%emt 0:06:31] [#] A03: Bird's Opening with 1...d5.} 11. Kh2 $146 {[%emt 0:05:05]} ({Predecessor:} 11. g4 exf4 12. Bxf4 Qe7 13. Qd2 Nd6 14. Bh6 f6 15. Bxg7 Kxg7 16. Rae1 Nf7 17. Ng3 {1-0 Fernandez Rodriguez,J (2167)-Garcia Moral Garcia,J (2305) ESP-ch rapid 2017 (4)}) 11... Nd6 {[%emt 0:04:54]} 12. fxe5 {[%emt 0:08:17]} Nxe5 {[%emt 0:01:14] The position is equal.} 13. Bf4 {[%emt 0:00:01]} f6 {[%emt 0:06:55]} 14. a3 {[%emt 0:02:09]} Ndf7 {[%emt 0:06:27]} 15. b4 {[%emt 0:01:59]} Nxf3+ {[%emt 0:01:59]} 16. Bxf3 {[%emt 0:00:19]} cxb4 {[%emt 0:02:18]} 17. axb4 {[%emt 0:00:13]} Ne5 {[%emt 0:02:29]} 18. Bg2 {[%emt 0:05:03]} Qb6 {[%emt 0:08:10]} 19. Qb1 {[%emt 0:08:11]} Be6 {[%emt 0:02:09]} 20. Qb2 {[%emt 0:01:40]} Rfd8 {[%emt 0:01:03]} 21. Rfc1 {[%emt 0:13:15]} (21. Bd2 $14) 21... Rac8 {[%emt 0:02:14]} (21... a5 $15 {feels stronger.}) 22. Ra4 {[%emt 0:04:08]} a6 {[%emt 0:02:31]} 23. Qa1 {[%emt 0:08:39]} (23. b5 $11 {remains equal.}) 23... Bd7 {[%emt 0:05:59]} (23... Kh8 $1 $17) 24. b5 {[%emt 0:01:22]} Bxb5 {[%emt 0:01:47]} ({Don't play} 24... Qxb5 25. Ra5 Qb6 26. Nxd4 $11) (24... g5 $15 25. Bd2 axb5) 25. Rxd4 $11 {[%emt 0:03:05]} Be8 {[%emt 0:07:50]} 26. Rxd8 {[%emt 0:01:08]} (26. Rb1 $5 {[%cal Rb1b6]} Qc7 27. Rxd8 Qxd8 28. Nd4 $14 (28. Rxb7 Rxc2 29. Bxe5 fxe5 $11)) 26... Rxd8 {[%emt 0:01:05]} 27. d4 {[%emt 0:02:15]} Nc4 {[%emt 0:01:50]} 28. Rb1 {[%emt 0:03:14] Against a5} Qa7 {[%emt 0:01:04]} 29. Qa2 {[%emt 0:03:45]} Bf7 {[%emt 0:00:41]} ({Black should try} 29... Rc8 $11) 30. d5 {[%emt 0:03:00]} (30. e5 $1 $14 Nxe5 31. Qa5) 30... Nd6 $2 {[%emt 0:00:57]} (30... Rc8 $11 {and Black stays safe.} 31. c3 g5) 31. Qa5 $18 {[%emt 0:01:37]} Qa8 {[%emt 0:00:49]} 32. Qb4 {[%emt 0:02:14] Inhibits Nc4.} (32. Bxd6 $1 $18 {is more deadly.} Rxd6 33. Qc7) 32... a5 $16 {[%emt 0:02:19]} 33. Qb6 {[%emt 0:01:09]} Nc4 {[%emt 0:00:54]} 34. Qxb7 {[%emt 0:01:17]} Qxb7 {[%emt 0:01:10]} 35. Rxb7 {[%emt 0:00:02]} f5 {[%emt 0:00:36]} (35... g5 $16 {keeps fighting.}) 36. Rc7 {[%emt 0:02:55] And now Bg5 would win.} Ne5 {[%emt 0:00:46]} (36... Nb6 $142) 37. exf5 $18 {[%emt 0:03:29] Nd4 would be deadly.} gxf5 {[%emt 0:00:37]} (37... Bf6 {was called for.} 38. c4 a4 39. fxg6 hxg6) 38. Rc5 $2 {[%emt 0:01:13]} (38. Nd4 $18 Ng4+ {[%mdl 64] Discovered Attack} 39. hxg4 Bxd4 40. Bg5 (40. gxf5 Bxd5 41. Bg5 Rd6 $18)) 38... a4 {[%emt 0:00:24]} (38... Bh5 $16) 39. Ra5 $1 {[%emt 0:00:30]} Be8 {[%emt 0:00:54]} 40. Ra7 {[%emt 0:03:20][%cal Oa7g7]} Nc4 {[%emt 0:00:33]} 41. c3 $1 {[%emt 0:10:02][%cal Bc2c3,Bc3d4][%mdl 32]} Bh5 {[%emt 0:00:00]} (41... a3 $16 42. Nd4 Bxd4 43. cxd4 Bf7) 42. Nd4 {[%emt 0:00:56]} Bxd4 {[%emt 0:00:00]} 43. cxd4 {[%emt 0:00:01]} Be8 {[%emt 0:00:00]} 44. d6 {[%emt 0:01:51]} Nxd6 {[%emt 0:02:07]} 45. Bd5+ {[%emt 0:00:09] This pair of bishops is nice.} Nf7 $2 {[%emt 0:02:10]} (45... Bf7 $16) 46. Bxf7+ $2 {[%emt 0:00:02]} (46. Be6 $1 $18) 46... Bxf7 $14 {[%emt 0:00:08]} 47. Rxa4 $18 {[%emt 0:00:03][%mdl 4096] Endgame KRB-KRB. White is much more active.} Be6 {[%emt 0:05:22]} 48. Be5 {[%emt 0:00:19]} Rd7 {[%emt 0:01:23]} 49. Kg2 {[%emt 0:00:39]} Kf7 {[%emt 0:01:29]} 50. Kf3 {[%emt 0:00:52]} Rb7 {[%emt 0:01:17]} 51. Kf4 {[%emt 0:01:23]} h6 {[%emt 0:01:23]} 52. Ra8 {[%emt 0:02:15]} Kg6 {[%emt 0:01:38]} 53. Ra6 {[%emt 0:00:30] Prevents Rb6.} Kf7 {[%emt 0:00:08]} 54. Rc6 {[%emt 0:00:44]} Rd7 {[%emt 0:02:14]} 55. h4 {[%emt 0:00:44][%cal Bh3h4,Bh4h5][%mdl 32] Threatens to win with h5.} Rd8 {[%emt 0:01:18]} (55... Ra7 $16 {might work better.} 56. h5 Ke7 57. Bd6+ Kd7) 56. Rc7+ {[%emt 0:01:43]} Kg6 {[%emt 0:01:45]} 57. Rc6 {[%emt 0:01:12]} (57. Ra7 $142) 57... Kf7 {[%emt 0:00:05]} 58. h5 {[%emt 0:00:47]} Rd7 {[%emt 0:01:28]} 59. Ke3 {[%emt 0:00:30]} Ra7 {[%emt 0:00:33]} 60. Kf4 {[%emt 0:00:16]} (60. Rb6 $142 $1) 60... Rd7 $1 {[%emt 0:00:31]} 61. Rc7 $2 {[%emt 0:00:20] Prevents} (61. Ra6 $18) 61... Rxc7 $14 {[%emt 0:00:33]} 62. Bxc7 {[%emt 0:00:02] KB-KB} Ke7 {[%emt 0:00:34]} 63. Ke5 $1 {[%emt 0:00:31][%cal Oc7d8] Strongly threatening Bd8+!} Bf7 $1 {[%emt 0:00:24]} 64. Kxf5 {[%emt 0:00:13] Black must now prevent Kg4.} Bxh5 {[%emt 0:00:07]} 65. Bf4 {[%emt 0:00:14]} Be8 {[%emt 0:00:47]} ({Black should play} 65... Bd1 $14) 66. Bxh6 $16 {[%emt 0:00:03]} Kd6 {[%emt 0:00:27]} (66... Bd7+ $16 67. Ke5 Bg4) 67. g4 $18 {[%emt 0:01:37]} Bf7 {[%emt 0:00:38]} 68. Bf4+ {[%emt 0:01:14]} Kd5 $2 {[%emt 0:00:34]} (68... Ke7 $18 69. g5 Be6+ 70. Kg6 Ba2) 69. Be5 $2 {[%emt 0:00:01]} (69. Kf6 {mates} Bg8 70. Be5 Bh7 71. g5 Ke4 72. g6 Bg8 73. Ke7 Kf5 74. Kf8) 69... Bg8 $2 {[%emt 0:00:31]} (69... Be6+ $18 70. Kf4 Bf7) 70. g5 {[%emt 0:00:23] White mates.} Kc6 {[%emt 0:00:25]} 71. Kf6 {[%emt 0:00:26]} Kd7 {[%emt 0:00:14]} 72. g6 {[%emt 0:00:33]} Ke8 {[%emt 0:00:37] [#]} 73. Kg7 $1 {[%emt 0:00:08]} Bd5 {[%emt 0:00:28] [#]} 74. Kh8 $1 {[%emt 0:00:56]} Be4 {[%emt 0:00:44]} 75. g7 {[%emt 0:00:15]} Bd5 {[%emt 0:00:06]} 76. g8=Q+ {[%emt 0:00:07] Weighted Error Value: White=0.37/Black=0.34} 1-0

[Event "GER-ch Youth-U18w 2023"]
[Site "Willingen"]
[Date "2023.06.02"]
[Round "8.8"]
[White "Werner, Rosalie"]
[Black "Zoellner, Bente"]
[Result "1/2-1/2"]
[Annotator "NA RC COMBH"]
[ECO "B32"]
[WhiteElo "1751"]
[BlackElo "1700"]
[PlyCount "110"]
[EventDate "2022.06.05"]
[EventType "swiss"]
[EventRounds "9"]
[EventCountry "GER"]
[SourceTitle "playchess.com"]
[Source "ChessBase"]
[SourceQuality "1"]
[TimeControl "40/4500+30:900+30"]

1. e4 {[%emt 0:00:00]} c5 {[%emt 0:00:00]} 2. Nf3 {[%emt 0:00:00]} Nc6 {[%emt 0:00:00]} 3. d4 {[%emt 0:00:00]} cxd4 {[%emt 0:00:00]} 4. Nxd4 {[%emt 0:00:00]} e5 {[%emt 0:00:00]} 5. Nb5 {[%emt 0:00:00]} d6 {[%emt 0:00:00]} 6. c4 {[%emt 0:00:00]} Be6 {[%emt 0:00:00]} 7. N1c3 {[%emt 0:00:00]} a6 {[%emt 0:00:00]} 8. Na3 {[%emt 0:00:00]} Be7 {[%emt 0:00:00]} 9. Nc2 {[%emt 0:02:46]} Rc8 {[%emt 0:01:10]} 10. Qd3 {[%emt 0:05:14]} Nf6 {[%emt 0:05:40]} 11. b3 {[%emt 0:09:07]} O-O {[%emt 0:01:05]} 12. Be2 {[%emt 0:04:28]} Nd7 {[%emt 0:06:35]} 13. Ne3 {[%emt 0:12:19]} Nc5 {[%emt 0:05:27]} 14. Qd1 {[%emt 0:03:07]} Bg5 {[%emt 0:02:43]} 15. O-O {[%emt 0:07:42]} Nd4 {[%emt 0:10:27]} 16. Bg4 {[%emt 0:03:46]} Bxe3 {[%emt 0:02:36]} 17. Bxe3 {[%emt 0:02:15]} Bxg4 {[%emt 0:04:39]} 18. Qxg4 {[%emt 0:00:07]} Nce6 {[%emt 0:04:42]} 19. Nd5 {[%emt 0:08:39]} b5 {[%emt 0:05:30]} 20. Bxd4 {[%emt 0:07:06]} Nxd4 {[%emt 0:01:37]} 21. Ne3 {[%emt 0:00:35]} Re8 {[%emt 0:05:33]} 22. Rfd1 {[%emt 0:02:18]} Rc7 {[%emt 0:05:57]} 23. Rd3 {[%emt 0:02:36]} bxc4 {[%emt 0:02:04]} 24. Nxc4 {[%emt 0:00:52]} Re6 {[%emt 0:02:02]} 25. Qd1 {[%emt 0:04:22]} Rd7 {[%emt 0:05:39]} 26. Rc1 {[%emt 0:02:10]} Kf8 {[%emt 0:03:19]} 27. Ne3 {[%emt 0:03:30]} Qh4 {[%emt 0:01:31]} 28. f3 {[%emt 0:00:43]} Rd8 {[%emt 0:02:31]} 29. Qd2 {[%emt 0:01:42]} Rg6 {[%emt 0:02:11]} 30. Qf2 {[%emt 0:03:30]} Qg5 {[%emt 0:02:01]} 31. Rdc3 {[%emt 0:00:53]} f5 {[%emt 0:01:33]} 32. Nxf5 {[%emt 0:00:59]} Nxf5 {[%emt 0:00:35]} 33. exf5 {[%emt 0:00:04]} Qxf5 {[%emt 0:00:08]} 34. Qb6 {[%emt 0:00:23]} Rd7 {[%emt 0:01:44]} 35. Qxa6 {[%emt 0:00:39]} Re6 {[%emt 0:01:47]} 36. Qa8+ {[%emt 0:00:46]} Re8 {[%emt 0:00:41]} 37. Qd5 {[%emt 0:00:20]} Qe6 {[%emt 0:00:38]} 38. Rd3 {[%emt 0:00:53]} Kf7 {[%emt 0:01:13]} 39. b4 {[%emt 0:00:27]} Qxd5 {[%emt 0:00:36]} 40. Rxd5 {[%emt 0:00:05]} Ra8 {[%emt 0:00:09]} 41. Rd2 {[%emt 0:00:00]} Ke7 {[%emt 0:00:00]} 42. Kf2 {[%emt 0:00:00]} Ra4 {[%emt 0:00:00]} 43. Rb2 {[%emt 0:00:00]} Rb7 {[%emt 0:00:00]} 44. Rcb1 {[%emt 0:00:00]} Kd7 {[%emt 0:00:00]} 45. Ke3 {[%emt 0:00:59]} Rb5 {[%emt 0:00:00]} 46. Kd3 {[%emt 0:05:53]} d5 {[%emt 0:00:06]} 47. Kc3 {[%emt 0:03:55]} Ra3+ {[%emt 0:00:16]} 48. Kd2 {[%emt 0:01:29]} Ra4 {[%emt 0:00:34]} 49. Kc3 {[%emt 0:01:42]} Ra3+ {[%emt 0:00:09]} 50. Kc2 {[%emt 0:00:05]} Ra4 {[%emt 0:00:06]} 51. Rd1 {[%emt 0:02:10]} Kd6 {[%emt 0:02:03]} 52. Kc3 {[%emt 0:02:12]} Ra3+ {[%emt 0:00:35]} 53. Kc2 {[%emt 0:00:11]} Ra4 {[%emt 0:00:05]} 54. Kc3 {[%emt 0:02:08]} Ra3+ {[%emt 0:00:07]} 55. Kc2 {[%emt 0:00:04]} Ra4 {[%emt 0:00:44]} 1/2-1/2

[Event "GER-ch Youth-U18w 2023"]
[Site "Willingen"]
[Date "2023.06.02"]
[Round "8.9"]
[White "Derling, Charlotte"]
[Black "Foltin, Alica"]
[Result "1/2-1/2"]
[Annotator "NA RC COMBH"]
[ECO "B32"]
[WhiteElo "1664"]
[BlackElo "1540"]
[PlyCount "81"]
[EventDate "2022.06.05"]
[EventType "swiss"]
[EventRounds "9"]
[EventCountry "GER"]
[SourceTitle "playchess.com"]
[Source "ChessBase"]
[SourceQuality "1"]
[TimeControl "40/4500+30:900+30"]

1. e4 {[%emt 0:00:00]} c5 {[%emt 0:00:00]} 2. Nf3 {[%emt 0:00:00]} Nc6 {[%emt 0:00:00]} 3. d4 {[%emt 0:00:00]} cxd4 {[%emt 0:00:00]} 4. Nxd4 {[%emt 0:00:00]} e5 {[%emt 0:00:00]} 5. Nb5 {[%emt 0:00:00]} a6 {[%emt 0:00:00]} 6. Nd6+ {[%emt 0:00:00]} Bxd6 {[%emt 0:00:00]} 7. Qxd6 {[%emt 0:00:00]} Qf6 {[%emt 0:00:00]} 8. Qxf6 {[%emt 0:00:00]} Nxf6 {[%emt 0:00:00]} 9. Nc3 {[%emt 0:02:20]} d5 {[%emt 0:00:00]} 10. Bd3 {[%emt 0:12:58]} Nb4 {[%emt 0:00:00]} 11. f3 {[%emt 0:10:48]} dxe4 {[%emt 0:00:00]} 12. fxe4 {[%emt 0:03:02]} h6 {[%emt 0:00:00]} 13. Be3 {[%emt 0:04:02]} Be6 {[%emt 0:00:00]} 14. Bc5 {[%emt 0:05:09]} Nxd3+ {[%emt 0:01:02]} 15. cxd3 {[%emt 0:00:13]} Nd7 {[%emt 0:00:47]} 16. Be3 {[%emt 0:01:47]} f6 {[%emt 0:03:39]} 17. O-O {[%emt 0:07:52]} Rd8 {[%emt 0:03:20]} 18. Rfd1 {[%emt 0:02:17]} O-O {[%emt 0:02:54]} 19. h3 {[%emt 0:03:28]} Nb8 {[%emt 0:00:40]} 20. d4 {[%emt 0:04:28]} exd4 {[%emt 0:00:58]} 21. Bxd4 {[%emt 0:00:44]} Nc6 {[%emt 0:00:51]} 22. Bb6 {[%emt 0:01:56]} Rde8 {[%emt 0:11:16]} 23. Nd5 {[%emt 0:02:50]} Bc8 {[%emt 0:04:05]} 24. Re1 {[%emt 0:00:57]} Re5 {[%emt 0:02:34]} 25. Bc7 {[%emt 0:03:26]} Ree8 {[%emt 0:02:14]} 26. Rad1 {[%emt 0:04:53]} b5 {[%emt 0:01:23]} 27. Bb6 {[%emt 0:02:55]} Ne5 {[%emt 0:01:53]} 28. Kh1 {[%emt 0:04:39]} Bb7 {[%emt 0:04:42]} 29. Rd4 {[%emt 0:01:46]} Nc6 {[%emt 0:02:05]} 30. Rdd1 {[%emt 0:00:42]} Ne5 {[%emt 0:00:57]} 31. Rd4 {[%emt 0:00:33]} Re6 {[%emt 0:04:12]} 32. Bc5 {[%emt 0:02:51]} Rc8 {[%emt 0:00:34]} 33. Ne7+ {[%emt 0:00:54]} Rxe7 {[%emt 0:06:19]} 34. Bxe7 {[%emt 0:00:09]} Rc2 {[%emt 0:01:26]} 35. Ba3 {[%emt 0:01:37]} Nc4 {[%emt 0:01:20]} 36. Rd8+ {[%emt 0:00:30]} Kh7 {[%emt 0:00:30]} 37. Rd7 {[%emt 0:00:35]} Bc6 {[%emt 0:05:25]} 38. Ra7 {[%emt 0:00:39]} Nxa3 {[%emt 0:00:39]} 39. bxa3 {[%emt 0:00:12]} f5 {[%emt 0:00:22]} 40. Rxa6 {[%emt 0:03:31]} Bxe4 {[%emt 0:00:43]} 41. Rg1 {[%emt 0:00:00]} 1/2-1/2

[Event "GER-ch Youth-U18w 2023"]
[Site "Willingen"]
[Date "2023.06.02"]
[Round "8.10"]
[White "Dohon, Maria-Johanna"]
[Black "Glowiak, Alexandra"]
[Result "0-1"]
[Annotator "NA RC COMBH"]
[ECO "D35"]
[WhiteElo "1507"]
[BlackElo "1660"]
[PlyCount "82"]
[EventDate "2022.06.05"]
[EventType "swiss"]
[EventRounds "9"]
[EventCountry "GER"]
[SourceTitle "playchess.com"]
[Source "ChessBase"]
[SourceQuality "1"]
[TimeControl "40/4500+30:900+30"]

1. d4 {[%emt 0:00:00]} d5 {[%emt 0:00:00]} 2. c4 {[%emt 0:00:00]} e6 {[%emt 0:00:00]} 3. Nc3 {[%emt 0:00:00]} Nf6 {[%emt 0:00:00]} 4. Nf3 {[%emt 0:00:00]} Be7 {[%emt 0:00:00]} 5. Bf4 {[%emt 0:00:00]} c6 {[%emt 0:00:00]} 6. e3 {[%emt 0:00:00]} O-O {[%emt 0:00:00]} 7. Rc1 {[%emt 0:00:00]} Nbd7 {[%emt 0:00:00]} 8. cxd5 {[%emt 0:00:00]} exd5 {[%emt 0:00:00]} 9. Bd3 {[%emt 0:00:00]} Re8 {[%emt 0:00:00]} 10. O-O {[%emt 0:00:00]} Nf8 {[%emt 0:00:00]} 11. h3 {[%emt 0:00:00]} Bd6 {[%emt 0:09:46]} 12. Bxd6 {[%emt 0:03:02]} Qxd6 {[%emt 0:00:02]} 13. Ne5 {[%emt 0:01:22]} N6d7 {[%emt 0:06:22]} 14. f4 {[%emt 0:06:24]} f6 {[%emt 0:03:51]} 15. Nxd7 {[%emt 0:03:06]} Bxd7 {[%emt 0:01:46]} 16. Qf3 {[%emt 0:01:55]} Re7 {[%emt 0:16:33]} 17. Rfe1 {[%emt 0:03:41]} Ne6 {[%emt 0:11:13]} 18. Re2 {[%emt 0:07:28]} Rae8 {[%emt 0:04:11]} 19. Rce1 {[%emt 0:00:12]} b6 {[%emt 0:02:07]} 20. Bb1 {[%emt 0:04:06]} Bc8 {[%emt 0:01:06]} 21. Bd3 {[%emt 0:09:41]} Bb7 {[%emt 0:01:54]} 22. Qf2 {[%emt 0:02:37]} a6 {[%emt 0:07:26]} 23. g4 {[%emt 0:13:50]} c5 {[%emt 0:02:14]} 24. dxc5 {[%emt 0:02:13]} bxc5 {[%emt 0:00:29]} 25. Rd1 {[%emt 0:06:23]} d4 {[%emt 0:03:28]} 26. Ne4 {[%emt 0:03:03]} Qd5 {[%emt 0:08:02]} 27. b3 {[%emt 0:01:43]} Kh8 {[%emt 0:02:01]} 28. Qh4 {[%emt 0:03:53]} Nf8 {[%emt 0:00:39]} 29. Rde1 {[%emt 0:05:27]} Rxe4 {[%emt 0:00:39]} 30. Bxe4 {[%emt 0:00:09]} Qxe4 {[%emt 0:00:18]} 31. Qg3 {[%emt 0:01:53]} d3 {[%emt 0:03:45]} 32. Rd2 {[%emt 0:00:20]} Ng6 {[%emt 0:00:45]} 33. Red1 {[%emt 0:02:07]} Rd8 {[%emt 0:00:19]} 34. Kf2 {[%emt 0:02:20]} c4 {[%emt 0:01:37]} 35. bxc4 {[%emt 0:00:53]} Qxc4 {[%emt 0:00:02]} 36. h4 {[%emt 0:01:12]} Be4 {[%emt 0:00:58]} 37. Rb1 {[%emt 0:01:33]} Ne7 {[%emt 0:01:18]} 38. f5 {[%emt 0:02:01]} Rg8 {[%emt 0:00:55]} 39. Qd6 {[%emt 0:01:07]} Qc3 {[%emt 0:00:38]} 40. Ke1 {[%emt 0:01:00]} Nd5 {[%emt 0:00:31]} 41. Rb8 {[%emt 0:00:00]} Qc1+ {[%emt 0:00:00]} 0-1

[Event "GER-ch Youth-U18w 2023"]
[Site "Willingen"]
[Date "2023.06.02"]
[Round "8.11"]
[White "Gossing, Marie-Sophie"]
[Black "Kieckbusch, Lotta"]
[Result "0-1"]
[Annotator "NA RC COMBH"]
[ECO "B21"]
[WhiteElo "1395"]
[BlackElo "1308"]
[PlyCount "33"]
[EventDate "2022.06.05"]
[EventType "swiss"]
[EventRounds "9"]
[EventCountry "GER"]
[SourceTitle "playchess.com"]
[Source "ChessBase"]
[SourceQuality "1"]
[TimeControl "40/4500+30:900+30"]

1. e4 {[%emt 0:00:00]} c5 {[%emt 0:00:00]} 2. d4 {[%emt 0:00:00]} cxd4 {[%emt 0:00:00]} 3. c3 {[%emt 0:00:00]} dxc3 {[%emt 0:00:00]} 4. Nxc3 {[%emt 0:00:00]} Nc6 {[%emt 0:00:00]} 5. Nf3 {[%emt 0:00:00]} e6 {[%emt 0:00:00]} 6. Bc4 {[%emt 0:00:00]} Bb4 {[%emt 0:00:00]} 7. O-O {[%emt 0:00:00]} Nge7 {[%emt 0:00:00]} 8. Nb5 {[%emt 0:00:00]} d5 {[%emt 0:00:00]} 9. exd5 {[%emt 0:00:00]} exd5 {[%emt 0:00:00]} 10. Bxd5 {[%emt 0:00:34]} Nxd5 {[%emt 0:00:00]} 11. Qxd5 {[%emt 0:00:10]} O-O {[%emt 0:00:00]} 12. Qh5 {[%emt 0:10:56]} Qa5 {[%emt 0:08:21]} 13. Ng5 {[%emt 0:17:00]} h6 {[%emt 0:00:27]} 14. Ne4 {[%emt 0:01:18]} a6 {[%emt 0:07:48]} 15. Bxh6 {[%emt 0:31:08]} Qxb5 {[%emt 0:02:37]} 16. Qxb5 {[%emt 0:03:33]} axb5 {[%emt 0:00:16]} 17. Be3 {[%emt 0:00:41]} 0-1

[Event "GER-ch Youth-U18w 2023"]
[Site "Willingen"]
[Date "2023.06.02"]
[Round "8.12"]
[White "Avetyan, Manan"]
[Black "Evering, Enna"]
[Result "0-1"]
[Annotator "NA RC COMBH"]
[ECO "C45"]
[WhiteElo "1368"]
[BlackElo "1548"]
[PlyCount "89"]
[EventDate "2022.06.05"]
[EventType "swiss"]
[EventRounds "9"]
[EventCountry "GER"]
[SourceTitle "playchess.com"]
[Source "ChessBase"]
[SourceQuality "1"]
[TimeControl "40/4500+30:900+30"]

1. e4 {[%emt 0:00:00]} e5 {[%emt 0:00:00]} 2. Nf3 {[%emt 0:00:00]} Nc6 {[%emt 0:00:00]} 3. d4 {[%emt 0:00:00]} exd4 {[%emt 0:00:00]} 4. Nxd4 {[%emt 0:00:00]} Qf6 {[%emt 0:00:00]} 5. Nxc6 {[%emt 0:00:00]} Bc5 {[%emt 0:00:00]} 6. Qe2 {[%emt 0:00:00]} dxc6 {[%emt 0:00:00]} 7. Nc3 {[%emt 0:00:00]} Ne7 {[%emt 0:00:00]} 8. a3 {[%emt 0:11:35]} Be6 {[%emt 0:10:45]} 9. Be3 {[%emt 0:03:27]} Bxe3 {[%emt 0:03:59]} 10. Qxe3 {[%emt 0:00:09]} O-O {[%emt 0:02:15]} 11. O-O-O {[%emt 0:01:33]} b5 {[%emt 0:08:43]} 12. Bd3 {[%emt 0:08:26]} Ng6 {[%emt 0:07:08]} 13. g3 {[%emt 0:04:42]} a5 {[%emt 0:09:52]} 14. f4 {[%emt 0:15:42]} b4 {[%emt 0:02:55]} 15. Nb1 {[%emt 0:05:04]} bxa3 {[%emt 0:09:04]} 16. Nxa3 {[%emt 0:00:56]} Bg4 {[%emt 0:06:34]} 17. e5 {[%emt 0:05:47]} Qe7 {[%emt 0:01:21]} 18. Rdf1 {[%emt 0:01:50]} Bd7 {[%emt 0:03:57]} 19. Re1 {[%emt 0:12:07]} Rfe8 {[%emt 0:01:10]} 20. Rhg1 {[%emt 0:08:54]} f5 {[%emt 0:03:49]} 21. h3 {[%emt 0:00:19]} Be6 {[%emt 0:03:32]} 22. g4 {[%emt 0:00:35]} Qd7 {[%emt 0:02:50]} 23. gxf5 {[%emt 0:02:10]} Bxf5 {[%emt 0:00:12]} 24. Bxf5 {[%emt 0:00:04]} Qxf5 {[%emt 0:00:04]} 25. Rg5 {[%emt 0:00:10]} Qxf4 {[%emt 0:00:49]} 26. e6 {[%emt 0:01:38]} Rxe6 {[%emt 0:01:05]} 27. Qxf4 {[%emt 0:01:11]} Rxe1+ {[%emt 0:00:20]} 28. Kd2 {[%emt 0:00:05]} Nxf4 {[%emt 0:00:19]} 29. Kxe1 {[%emt 0:00:06]} Nxh3 {[%emt 0:00:49]} 30. Rc5 {[%emt 0:00:23]} Re8+ {[%emt 0:01:16]} 31. Kd2 {[%emt 0:00:20]} Re6 {[%emt 0:01:04]} 32. Rxa5 {[%emt 0:00:12]} Nf4 {[%emt 0:00:58]} 33. Nc4 {[%emt 0:01:17]} Nd5 {[%emt 0:00:54]} 34. c3 {[%emt 0:01:17]} Kf7 {[%emt 0:01:25]} 35. Rc5 {[%emt 0:01:29]} Kf6 {[%emt 0:01:08]} 36. Na5 {[%emt 0:00:22]} Ne7 {[%emt 0:00:53]} 37. Kd3 {[%emt 0:01:06]} Re5 {[%emt 0:00:42]} 38. Kd4 {[%emt 0:00:56]} Rxc5 {[%emt 0:00:31]} 39. Kxc5 {[%emt 0:00:05]} h5 {[%emt 0:00:21]} 40. Nc4 {[%emt 0:00:58]} h4 {[%emt 0:01:24]} 41. Ne3 {[%emt 0:00:00]} Ke5 {[%emt 0:00:00]} 42. Nf1 {[%emt 0:00:37]} h3 {[%emt 0:00:00]} 43. Nh2 {[%emt 0:01:20]} g5 {[%emt 0:00:00]} 44. b4 {[%emt 0:03:14]} Kf4 {[%emt 0:00:00]} 45. Kd4 {[%emt 0:01:06]} 0-1